[Event "UKR-ch"]
[Site "Kyiv UKR"]
[Date "2018.12.20"]
[Round "9"]
[White "Kravtsiv, Martyn"]
[Black "Golubka, Petro"]
[Result "1-0"]
[ECO "D66"]
[WhiteElo "2644"]
[BlackElo "2464"]
[WhiteFideId "-1"]
[BlackFideId "-1"]
[PlyCount "155"]
[GameId "2129404762902116"]
[EventDate "2018.12.11"]
[EventType "tourn"]
[EventRounds "9"]
[EventCountry "UKR"]
[EventCategory "15"]
[SourceTitle "10 Days #564"]
[Source "ChessMix"]
[SourceDate "2018.12.20"]
[SourceVersion "1"]
[SourceVersionDate "2018.12.20"]
[SourceQuality "1"]
[TimeControl "40/5400+30:1800+30"]

1. d4 {[%emt 0:00:00]} d5 {[%emt 0:00:00]} 2. c4 {[%emt 0:00:00]} c6 {[%emt 0:00:16]} 3. Nf3 {[%emt 0:00:32]} Nf6 {[%emt 0:00:05]} 4. Nc3 {[%emt 0:00:09]} e6 {[%emt 0:00:08]} 5. Bg5 {[%emt 0:01:01]} Nbd7 {[%emt 0:00:04]} 6. e3 {[%emt 0:01:24]} Be7 {[%emt 0:00:10]} 7. Rc1 {[%emt 0:03:17]} O-O {[%emt 0:00:26]} 8. Be2 {[%emt 0:05:37]} Re8 {[%emt 0:04:43]} 9. O-O {[%emt 0:01:09]} dxc4 {[%emt 0:01:05]} 10. Bxc4 {[%emt 0:03:12]} Nd5 {[%emt 0:00:10]} 11. Bxe7 {[%emt 0:01:44]} Qxe7 {[%emt 0:00:01]} 12. Ne4 {[%emt 0:12:03]} b6 {[%emt 0:02:11]} 13. Ne5 {[%emt 0:11:41]} Bb7 {[%emt 0:00:33]} 14. Bb3 {[%emt 0:20:47]} Rac8 {[%emt 0:08:35]} 15. Nc4 {[%emt 0:00:44]} Rc7 {[%emt 0:03:45]} 16. Ncd6 {[%emt 0:01:44]} Rb8 {[%emt 0:00:15]} 17. Nxb7 {[%emt 0:00:33]} Rbxb7 {[%emt 0:00:04]} 18. Qf3 {[%emt 0:00:37]} N7f6 {[%emt 0:07:22]} 19. Ng3 {[%emt 0:00:17]} Qd8 {[%emt 0:01:15]} 20. Rfd1 {[%emt 0:02:38]} Ne7 {[%emt 0:00:22]} 21. h4 {[%emt 0:05:54]} Rd7 {[%emt 0:03:45]} 22. e4 {[%emt 0:02:24]} Rb8 {[%emt 0:01:29]} 23. e5 {[%emt 0:03:23]} Ne8 {[%emt 0:01:31]} 24. Qg4 {[%emt 0:05:59]} Rc8 {[%emt 0:03:14]} 25. h5 {[%emt 0:00:55]} Nd5 {[%emt 0:09:40]} 26. Ne4 {[%emt 0:01:15]} Qe7 {[%emt 0:05:18]} 27. Rd3 {[%emt 0:01:13]} f5 {[%emt 0:01:34]} 28. exf6 {[%emt 0:00:05]} Nexf6 {[%emt 0:00:06]} 29. Nxf6+ {[%emt 0:00:04]} Qxf6 {[%emt 0:00:05]} 30. Re3 {[%emt 0:01:19]} Rd6 {[%emt 0:02:58]} 31. Rxe6 {[%emt 0:05:03]} Qxe6 {[%emt 0:00:16]} 32. Qxe6+ {[%emt 0:01:53]} Rxe6 {[%emt 0:00:04]} 33. Bxd5 {[%emt 0:00:05]} Kf7 {[%emt 0:00:03]} 34. Kf1 {[%emt 0:01:19]} Kf6 {[%emt 0:00:23]} 35. Bxe6 {[%emt 0:00:05]} Kxe6 {[%emt 0:00:03]} 36. Re1+ {[%emt 0:03:51]} Kd6 {[%emt 0:01:14]} 37. Re4 {[%emt 0:01:12]} c5 {[%emt 0:00:40]} 38. Ke2 {[%emt 0:01:06]} cxd4 {[%emt 0:03:49]} 39. Rxd4+ {[%emt 0:00:05]} Ke6 {[%emt 0:00:05]} 40. Kd2 {[%emt 0:00:00]} Rc5 {[%emt 0:00:00]} 41. g4 {[%emt 0:01:50]} Ke7 {[%emt 0:01:26]} 42. Ra4 {[%emt 0:02:07]} a5 {[%emt 0:00:06]} 43. f4 {[%emt 0:03:19]} g6 {[%emt 0:00:25]} 44. Re4+ {[%emt 0:00:44]} Kf7 {[%emt 0:00:22]} 45. hxg6+ {[%emt 0:01:27]} hxg6 {[%emt 0:00:52]} 46. Kd3 {[%emt 0:00:50]} Rc1 {[%emt 0:00:46]} 47. Re5 {[%emt 0:01:32]} Rf1 {[%emt 0:00:12]} 48. Ke4 {[%emt 0:03:10]} Re1+ {[%emt 0:00:19]} 49. Kf3 {[%emt 0:01:12]} Rc1 {[%emt 0:00:26]} 50. Rb5 {[%emt 0:03:41]} Rc6 {[%emt 0:00:05]} 51. Ke4 {[%emt 0:00:53]} Ke6 {[%emt 0:00:33]} 52. Re5+ {[%emt 0:01:30]} Kf6 {[%emt 0:00:10]} 53. Kd5 {[%emt 0:02:39]} Rc5+ {[%emt 0:00:04]} 54. Kd4 {[%emt 0:00:15]} Rc6 {[%emt 0:00:06]} 55. g5+ {[%emt 0:03:44]} Kf7 {[%emt 0:01:00]} 56. f5 {[%emt 0:00:08]} Rc2 {[%emt 0:02:08]} 57. fxg6+ {[%emt 0:01:17]} Kg7 {[%emt 0:00:24]} 58. Rb5 {[%emt 0:01:11]} Rc6 {[%emt 0:00:28]} 59. a3 {[%emt 0:02:37]} Rd6+ {[%emt 0:02:37]} 60. Rd5 {[%emt 0:00:24]} Rc6 {[%emt 0:00:54]} 61. Rf5 {[%emt 0:00:17]} Rc2 {[%emt 0:00:11]} 62. Rf7+ {[%emt 0:00:47]} Kg8 {[%emt 0:00:05]} 63. b3 {[%emt 0:02:27]} a4 {[%emt 0:03:27]} 64. bxa4 {[%emt 0:00:38]} Rc5 {[%emt 0:07:53]} 65. Rf6 {[%emt 0:00:11]} Ra5 {[%emt 0:00:13]} 66. Kc4 {[%emt 0:00:11]} Rxa4+ {[%emt 0:00:04]} 67. Kb3 {[%emt 0:00:05]} Ra6 {[%emt 0:00:02]} 68. Kb4 {[%emt 0:00:43]} Kg7 {[%emt 0:00:05]} 69. Rc6 {[%emt 0:01:19]} Kg8 {[%emt 0:00:13]} 70. Rc7 {[%emt 0:01:14]} Kf8 {[%emt 0:00:20]} 71. Rb7 {[%emt 0:00:26]} Kg8 {[%emt 0:00:05]} 72. g7 {[%emt 0:01:48]} Kh7 {[%emt 0:00:05]} 73. g6+ {[%emt 0:00:39]} Kg8 {[%emt 0:00:05]} 74. a4 {[%emt 0:00:07]} b5 {[%emt 0:01:27]} 75. Rb8+ {[%emt 0:00:45]} Kxg7 {[%emt 0:00:07]} 76. axb5 {[%emt 0:00:06]} Rxg6 {[%emt 0:00:02]} 77. Re8 {[%emt 0:00:24]} Kf7 {[%emt 0:00:05]} 78. Re4 {[%emt 0:00:07]} 1-0

[Event "SS Manhem GM"]
[Site "Molnlycke SWE"]
[Date "2018.08.11"]
[Round "1.4"]
[White "Golubka, Petro"]
[Black "Gritsak, Orest"]
[Result "1-0"]
[ECO "C00"]
[WhiteElo "2478"]
[BlackElo "2464"]
[WhiteFideId "-1"]
[BlackFideId "-1"]
[PlyCount "77"]
[GameId "2129404764996915"]
[EventDate "2018.08.11"]
[EventType "tourn"]
[EventRounds "9"]
[EventCountry "SWE"]
[EventCategory "8"]
[SourceTitle "10 Days #552"]
[Source "ChessMix"]
[SourceDate "2018.08.20"]
[SourceVersion "1"]
[SourceVersionDate "2018.08.20"]
[SourceQuality "1"]
[TimeControl "90+30"]
[WhiteClock "0:03:57"]
[BlackClock "0:11:28"]

1. e4 {[%emt 0:00:00]} e6 {[%emt 0:00:00]} 2. e5 {[%emt 0:00:00]} d6 {[%emt 0:00:00]} 3. exd6 {[%emt 0:00:00]} cxd6 {[%emt 0:00:00]} 4. d4 {[%emt 0:00:00]} Nf6 {[%emt 0:00:00]} 5. Nf3 {[%emt 0:00:00]} Be7 {[%emt 0:00:00]} 6. c4 {[%emt 0:00:00]} O-O {[%emt 0:00:00]} 7. Nc3 {[%emt 0:00:00]} d5 {[%emt 0:00:00]} 8. Bd3 {[%emt 0:00:00]} dxc4 {[%emt 0:00:00]} 9. Bxc4 {[%emt 0:00:00]} a6 {[%emt 0:00:00]} 10. a4 {[%emt 0:00:00]} b6 {[%emt 0:00:00]} 11. O-O {[%emt 0:00:00]} Bb7 {[%emt 0:00:00]} 12. Qe2 {[%emt 0:00:00]} Nc6 {[%emt 0:00:00]} 13. Rd1 {[%emt 0:00:00]} Nb4 {[%emt 0:00:00]} 14. Bb3 {[%emt 0:00:00]} Rc8 {[%emt 0:00:00]} 15. Bd2 {[%emt 0:00:00]} Bxf3 {[%emt 0:00:00]} 16. Qxf3 {[%emt 0:00:00]} Qd7 {[%emt 0:00:00]} 17. Bf4 {[%emt 0:00:00]} Rfd8 {[%emt 0:00:00]} 18. h4 {[%emt 0:00:00]} Qc6 {[%emt 0:00:00]} 19. Qe2 {[%emt 0:00:00]} Qb7 {[%emt 0:00:00]} 20. h5 {[%emt 0:00:00]} h6 {[%emt 0:00:00]} 21. Be5 {[%emt 0:00:00]} a5 {[%emt 0:00:00]} 22. Rac1 {[%emt 0:00:00]} Ne8 {[%emt 0:03:38]} 23. f4 {[%emt 0:00:00]} Bd6 {[%emt 0:01:02]} 24. Nb5 {[%emt 0:00:00]} Bxe5 {[%emt 0:01:33]} 25. fxe5 {[%emt 0:00:00]} Rxc1 {[%emt 0:00:31]} 26. Rxc1 {[%emt 0:00:00]} Rc8 {[%emt 0:00:02]} 27. Rf1 {[%emt 0:00:00]} Qd7 {[%emt 0:00:51]} 28. Qe4 {[%emt 0:00:00]} Rc6 {[%emt 0:00:25]} 29. Nc3 {[%emt 0:00:00]} Nc7 {[%emt 0:00:13]} 30. Rf3 {[%emt 0:00:00]} Ncd5 {[%emt 0:00:39]} 31. Rg3 {[%emt 0:00:00]} f5 {[%emt 0:01:59]} 32. Qh4 {[%emt 0:00:00]} Kf8 {[%emt 0:01:18]} 33. Rf3 {[%emt 0:00:00]} Ne7 {[%emt 0:00:21]} 34. Qf2 {[%emt 0:00:00]} Ke8 {[%emt 0:01:55]} 35. g4 {[%emt 0:00:00]} Rc8 {[%emt 0:01:40]} 36. gxf5 {[%emt 0:04:23]} Nxf5 {[%emt 0:00:23]} 37. Bxe6 {[%emt 0:03:04]} Qxe6 {[%emt 0:00:02]} 38. Rxf5 {[%emt 0:00:07]} Nd3 {[%emt 0:00:01]} 39. Qf3 {[%emt 0:01:58]} 1-0

[Event "SS Manhem GM"]
[Site "Molnlycke SWE"]
[Date "2018.08.12"]
[Round "2.2"]
[White "Lindberg, Bengt"]
[Black "Golubka, Petro"]
[Result "1/2-1/2"]
[ECO "B22"]
[WhiteElo "2416"]
[BlackElo "2478"]
[WhiteFideId "-1"]
[BlackFideId "-1"]
[PlyCount "46"]
[GameId "2129404764996918"]
[EventDate "2018.08.11"]
[EventType "tourn"]
[EventRounds "9"]
[EventCountry "SWE"]
[EventCategory "8"]
[SourceTitle "10 Days #552"]
[Source "ChessMix"]
[SourceDate "2018.08.20"]
[SourceVersion "1"]
[SourceVersionDate "2018.08.20"]
[SourceQuality "1"]
[TimeControl "90+30"]
[WhiteClock "0:49:01"]
[BlackClock "0:38:34"]

1. e4 {[%emt 0:00:00]} c6 {[%emt 0:00:00]} 2. d4 {[%emt 0:00:00]} d5 {[%emt 0:00:00]} 3. exd5 {[%emt 0:00:00]} cxd5 {[%emt 0:00:00]} 4. c4 {[%emt 0:00:00]} Nf6 {[%emt 0:00:00]} 5. Nc3 {[%emt 0:00:00]} e6 {[%emt 0:00:00]} 6. Nf3 {[%emt 0:00:00]} Bb4 {[%emt 0:00:00]} 7. cxd5 {[%emt 0:00:00]} Nxd5 {[%emt 0:00:00]} 8. Bd2 {[%emt 0:00:00]} Nc6 {[%emt 0:00:00]} 9. Bd3 {[%emt 0:00:00]} Nf6 {[%emt 0:00:00]} 10. a3 {[%emt 0:00:00]} Be7 {[%emt 0:00:00]} 11. Be3 {[%emt 0:00:00]} O-O {[%emt 0:00:00]} 12. O-O {[%emt 0:00:00]} b6 {[%emt 0:00:00]} 13. Qc2 {[%emt 0:00:00]} Bb7 {[%emt 0:00:00]} 14. Rad1 {[%emt 0:00:00]} g6 {[%emt 0:00:00]} 15. Rfe1 {[%emt 0:00:00]} Rc8 {[%emt 0:00:00]} 16. Qe2 {[%emt 0:00:00]} Re8 {[%emt 0:00:00]} 17. Bh6 {[%emt 0:00:00]} Ng4 {[%emt 0:00:00]} 18. Bf4 {[%emt 0:00:00]} Nf6 {[%emt 0:00:00]} 19. Bc4 {[%emt 0:00:00]} Na5 {[%emt 0:00:00]} 20. Bb5 {[%emt 0:00:00]} Bc6 {[%emt 0:00:00]} 21. Ba6 {[%emt 0:00:00]} Bb7 {[%emt 0:00:00]} 22. Bb5 {[%emt 0:00:00]} Bc6 {[%emt 0:00:00]} 23. Ba6 {[%emt 0:00:00]} Bb7 {[%emt 0:00:00]} 1/2-1/2

[Event "SS Manhem GM"]
[Site "Molnlycke SWE"]
[Date "2018.08.12"]
[Round "3.2"]
[White "Golubka, Petro"]
[Black "Rozentalis, Eduardas"]
[Result "1/2-1/2"]
[ECO "E12"]
[WhiteElo "2478"]
[BlackElo "2503"]
[WhiteFideId "-1"]
[BlackFideId "-1"]
[PlyCount "33"]
[GameId "2129404764996923"]
[EventDate "2018.08.11"]
[EventType "tourn"]
[EventRounds "9"]
[EventCountry "SWE"]
[EventCategory "8"]
[SourceTitle "10 Days #552"]
[Source "ChessMix"]
[SourceDate "2018.08.20"]
[SourceVersion "1"]
[SourceVersionDate "2018.08.20"]
[SourceQuality "1"]
[TimeControl "90+30"]
[WhiteClock "0:56:10"]
[BlackClock "0:54:50"]

1. Nf3 {[%emt 0:00:00]} Nf6 {[%emt 0:00:00]} 2. c4 {[%emt 0:00:00]} e6 {[%emt 0:00:00]} 3. d4 {[%emt 0:00:00]} b6 {[%emt 0:00:00]} 4. a3 {[%emt 0:00:00]} d5 {[%emt 0:00:00]} 5. Nc3 {[%emt 0:00:00]} Be7 {[%emt 0:00:00]} 6. cxd5 {[%emt 0:00:00]} exd5 {[%emt 0:00:00]} 7. Bg5 {[%emt 0:00:00]} O-O {[%emt 0:00:00]} 8. e3 {[%emt 0:00:00]} Bb7 {[%emt 0:00:00]} 9. Bd3 {[%emt 0:00:00]} Nbd7 {[%emt 0:00:00]} 10. Qc2 {[%emt 0:00:00]} h6 {[%emt 0:00:00]} 11. Bf4 {[%emt 0:00:00]} c5 {[%emt 0:00:00]} 12. O-O {[%emt 0:00:00]} a6 {[%emt 0:00:00]} 13. Rfe1 {[%emt 0:00:00]} c4 {[%emt 0:00:00]} 14. Bf5 {[%emt 0:00:00]} b5 {[%emt 0:00:00]} 15. Ne5 {[%emt 0:00:00]} Nb6 {[%emt 0:00:00]} 16. Rad1 {[%emt 0:00:00]} Nc8 {[%emt 0:00:00]} 17. Ng4 {[%emt 0:00:00]} 1/2-1/2

[Event "SS Manhem GM"]
[Site "Molnlycke SWE"]
[Date "2018.08.13"]
[Round "4.2"]
[White "Schneider, Stefan"]
[Black "Golubka, Petro"]
[Result "0-1"]
[ECO "E06"]
[WhiteElo "2399"]
[BlackElo "2478"]
[WhiteFideId "-1"]
[BlackFideId "-1"]
[PlyCount "72"]
[GameId "2129404764996928"]
[EventDate "2018.08.11"]
[EventType "tourn"]
[EventRounds "9"]
[EventCountry "SWE"]
[EventCategory "8"]
[SourceTitle "10 Days #552"]
[Source "ChessMix"]
[SourceDate "2018.08.20"]
[SourceVersion "1"]
[SourceVersionDate "2018.08.20"]
[SourceQuality "1"]
[TimeControl "90+30"]
[WhiteClock "0:48:55"]
[BlackClock "0:01:22"]

1. d4 {[%emt 0:00:00]} Nf6 {[%emt 0:00:00]} 2. c4 {[%emt 0:00:00]} e6 {[%emt 0:00:00]} 3. Nf3 {[%emt 0:00:00]} b6 {[%emt 0:00:00]} 4. g3 {[%emt 0:00:00]} Ba6 {[%emt 0:00:00]} 5. Qa4 {[%emt 0:00:00]} Bb7 {[%emt 0:00:00]} 6. Bg2 {[%emt 0:00:00]} Be7 {[%emt 0:00:00]} 7. O-O {[%emt 0:00:00]} O-O {[%emt 0:00:00]} 8. Nc3 {[%emt 0:00:00]} d5 {[%emt 0:00:00]} 9. Ne5 {[%emt 0:00:00]} c6 {[%emt 0:00:00]} 10. Rd1 {[%emt 0:00:00]} a6 {[%emt 0:00:00]} 11. Qc2 {[%emt 0:00:00]} Nbd7 {[%emt 0:00:00]} 12. e4 {[%emt 0:00:00]} dxc4 {[%emt 0:00:00]} 13. Nxc4 {[%emt 0:00:00]} b5 {[%emt 0:00:00]} 14. Ne3 {[%emt 0:00:00]} Rc8 {[%emt 0:00:00]} 15. e5 {[%emt 0:00:00]} Nd5 {[%emt 0:00:00]} 16. Be4 {[%emt 0:00:00]} f5 {[%emt 0:00:00]} 17. exf6 {[%emt 0:00:00]} N7xf6 {[%emt 0:00:00]} 18. Bg2 {[%emt 0:00:00]} c5 {[%emt 0:00:00]} 19. dxc5 {[%emt 0:00:00]} Bxc5 {[%emt 0:00:00]} 20. Qb3 {[%emt 0:00:00]} Kh8 {[%emt 0:00:00]} 21. a4 {[%emt 0:00:00]} b4 {[%emt 0:00:00]} 22. Ncxd5 {[%emt 0:00:24]} exd5 {[%emt 0:00:00]} 23. a5 {[%emt 0:02:46]} Qe7 {[%emt 0:00:00]} 24. Qd3 {[%emt 0:06:46]} Qf7 {[%emt 0:00:00]} 25. Rf1 {[%emt 0:00:23]} Bc6 {[%emt 0:00:00]} 26. Qxa6 {[%emt 0:00:19]} Qe8 {[%emt 0:00:00]} 27. Qd3 {[%emt 0:02:07]} Bb5 {[%emt 0:00:00]} 28. Qd1 {[%emt 0:00:12]} Bxf1 {[%emt 0:00:00]} 29. Qxf1 {[%emt 0:00:41]} Ne4 {[%emt 0:00:00]} 30. Bxe4 {[%emt 0:00:47]} Qxe4 {[%emt 0:00:00]} 31. Bd2 {[%emt 0:01:18]} Bd4 {[%emt 0:00:00]} 32. Ra4 {[%emt 0:00:41]} Rc2 {[%emt 0:00:00]} 33. Qd1 {[%emt 0:00:59]} Rxf2 {[%emt 0:00:00]} 34. Qxc2 {[%emt 0:00:07]} Rg2+ {[%emt 0:00:00]} 35. Kh1 {[%emt 0:00:09]} Qxc2 {[%emt 0:00:00]} 36. Rxb4 {[%emt 0:00:29]} Rxh2+ {[%emt 0:00:00]} 0-1

[Event "SS Manhem GM"]
[Site "Molnlycke SWE"]
[Date "2018.08.14"]
[Round "5.1"]
[White "Golubka, Petro"]
[Black "Johansson, Linus"]
[Result "1/2-1/2"]
[ECO "E12"]
[WhiteElo "2478"]
[BlackElo "2457"]
[WhiteFideId "-1"]
[BlackFideId "-1"]
[PlyCount "94"]
[GameId "2129404764996932"]
[EventDate "2018.08.11"]
[EventType "tourn"]
[EventRounds "9"]
[EventCountry "SWE"]
[EventCategory "8"]
[SourceTitle "10 Days #552"]
[Source "ChessMix"]
[SourceDate "2018.08.20"]
[SourceVersion "1"]
[SourceVersionDate "2018.08.20"]
[SourceQuality "1"]
[TimeControl "90+30"]
[WhiteClock "0:08:57"]
[BlackClock "0:10:34"]

1. d4 {[%emt 0:00:00]} Nf6 {[%emt 0:00:00]} 2. c4 {[%emt 0:00:00]} e6 {[%emt 0:00:00]} 3. Nf3 {[%emt 0:00:00]} b6 {[%emt 0:00:00]} 4. a3 {[%emt 0:00:00]} Bb7 {[%emt 0:00:00]} 5. Nc3 {[%emt 0:00:00]} d5 {[%emt 0:00:00]} 6. cxd5 {[%emt 0:00:00]} Nxd5 {[%emt 0:00:00]} 7. e3 {[%emt 0:00:00]} Nxc3 {[%emt 0:00:00]} 8. bxc3 {[%emt 0:00:00]} g6 {[%emt 0:00:00]} 9. h4 {[%emt 0:00:00]} h6 {[%emt 0:00:00]} 10. Bb5+ {[%emt 0:00:00]} c6 {[%emt 0:00:00]} 11. Bd3 {[%emt 0:00:00]} Bg7 {[%emt 0:00:00]} 12. h5 {[%emt 0:00:00]} g5 {[%emt 0:00:00]} 13. e4 {[%emt 0:00:00]} c5 {[%emt 0:00:00]} 14. Be3 {[%emt 0:00:00]} Nc6 {[%emt 0:00:00]} 15. Rc1 {[%emt 0:00:00]} Qd6 {[%emt 0:00:00]} 16. dxc5 {[%emt 0:00:00]} bxc5 {[%emt 0:00:00]} 17. Bb5 {[%emt 0:00:00]} Qxd1+ {[%emt 0:00:00]} 18. Kxd1 {[%emt 0:00:00]} O-O-O+ {[%emt 0:00:00]} 19. Ke2 {[%emt 0:00:00]} Na5 {[%emt 0:00:00]} 20. Nd2 {[%emt 0:00:00]} Rd6 {[%emt 0:00:00]} 21. f3 {[%emt 0:00:00]} Rhd8 {[%emt 0:00:00]} 22. Rc2 {[%emt 0:00:00]} Be5 {[%emt 0:00:00]} 23. Nc4 {[%emt 0:00:00]} Nxc4 {[%emt 0:00:00]} 24. Bxc4 {[%emt 0:00:00]} Bf4 {[%emt 0:00:00]} 25. Bxf4 {[%emt 0:00:00]} gxf4 {[%emt 0:00:00]} 26. Rh4 {[%emt 0:00:00]} Rg8 {[%emt 0:00:00]} 27. Kf2 {[%emt 0:00:00]} e5 {[%emt 0:00:00]} 28. Bxf7 {[%emt 0:00:00]} Rg7 {[%emt 0:00:00]} 29. Bg6 {[%emt 0:00:00]} Rd1 {[%emt 0:00:00]} 30. Rg4 {[%emt 0:00:00]} Kc7 {[%emt 0:00:00]} 31. Bf5 {[%emt 0:00:00]} Rxg4 {[%emt 0:00:00]} 32. fxg4 {[%emt 0:00:00]} Ba6 {[%emt 0:00:00]} 33. c4 {[%emt 0:00:00]} Rh1 {[%emt 0:00:00]} 34. Rc3 {[%emt 0:00:00]} Kd8 {[%emt 0:00:00]} 35. g3 {[%emt 0:00:00]} Ke7 {[%emt 0:02:29]} 36. gxf4 {[%emt 0:00:00]} exf4 {[%emt 0:00:26]} 37. e5 {[%emt 0:00:00]} Bb7 {[%emt 0:01:11]} 38. Rd3 {[%emt 0:00:51]} Rh2+ {[%emt 0:02:01]} 39. Ke1 {[%emt 0:00:11]} Rh1+ {[%emt 0:00:06]} 40. Kd2 {[%emt 0:01:27]} Rh2+ {[%emt 0:00:18]} 41. Kc3 {[%emt 0:01:25]} Bc6 {[%emt 0:00:40]} 42. Rd5 {[%emt 0:09:55]} f3 {[%emt 0:08:03]} 43. Rxc5 {[%emt 0:00:12]} f2 {[%emt 0:00:09]} 44. Rxc6 {[%emt 0:00:15]} f1=Q {[%emt 0:00:21]} 45. Rc7+ {[%emt 0:00:04]} Kd8 {[%emt 0:00:09]} 46. Rc8+ {[%emt 0:00:04]} Ke7 {[%emt 0:00:05]} 47. Rc7+ {[%emt 0:00:02]} Kd8 {[%emt 0:00:05]} 1/2-1/2

[Event "SS Manhem GM"]
[Site "Molnlycke SWE"]
[Date "2018.08.15"]
[Round "6.2"]
[White "Sammalvuo, Tapani"]
[Black "Golubka, Petro"]
[Result "1-0"]
[ECO "E40"]
[WhiteElo "2411"]
[BlackElo "2478"]
[WhiteFideId "-1"]
[BlackFideId "-1"]
[PlyCount "125"]
[GameId "2129404764996938"]
[EventDate "2018.08.11"]
[EventType "tourn"]
[EventRounds "9"]
[EventCountry "SWE"]
[EventCategory "8"]
[SourceTitle "10 Days #552"]
[Source "ChessMix"]
[SourceDate "2018.08.20"]
[SourceVersion "1"]
[SourceVersionDate "2018.08.20"]
[SourceQuality "1"]
[TimeControl "90+30"]
[WhiteClock "0:24:13"]
[BlackClock "0:15:41"]

1. d4 {[%emt 0:00:00]} Nf6 {[%emt 0:00:00]} 2. c4 {[%emt 0:00:00]} e6 {[%emt 0:00:00]} 3. Nc3 {[%emt 0:00:00]} Bb4 {[%emt 0:00:00]} 4. e3 {[%emt 0:00:00]} d5 {[%emt 0:00:00]} 5. a3 {[%emt 0:00:00]} Be7 {[%emt 0:00:00]} 6. Nf3 {[%emt 0:00:00]} b6 {[%emt 0:00:00]} 7. cxd5 {[%emt 0:00:00]} exd5 {[%emt 0:00:00]} 8. Qa4+ {[%emt 0:00:00]} c6 {[%emt 0:00:00]} 9. Ne5 {[%emt 0:00:00]} Bb7 {[%emt 0:00:00]} 10. Be2 {[%emt 0:00:00]} O-O {[%emt 0:00:00]} 11. O-O {[%emt 0:00:00]} a6 {[%emt 0:00:00]} 12. Bf3 {[%emt 0:00:00]} Bd6 {[%emt 0:00:00]} 13. e4 {[%emt 0:00:00]} Bxe5 {[%emt 0:00:00]} 14. dxe5 {[%emt 0:00:00]} Nfd7 {[%emt 0:00:00]} 15. exd5 {[%emt 0:00:00]} Nxe5 {[%emt 0:00:00]} 16. Be4 {[%emt 0:00:00]} cxd5 {[%emt 0:00:00]} 17. Rd1 {[%emt 0:00:00]} b5 {[%emt 0:00:00]} 18. Qc2 {[%emt 0:00:00]} dxe4 {[%emt 0:00:00]} 19. Rxd8 {[%emt 0:00:00]} Rxd8 {[%emt 0:00:00]} 20. Bg5 {[%emt 0:00:00]} Rc8 {[%emt 0:00:00]} 21. Qe2 {[%emt 0:00:00]} Rc4 {[%emt 0:00:00]} 22. Rd1 {[%emt 0:00:00]} Nbd7 {[%emt 0:00:00]} 23. Nd5 {[%emt 0:00:00]} h6 {[%emt 0:00:00]} 24. Be3 {[%emt 0:00:00]} Re8 {[%emt 0:00:00]} 25. b3 {[%emt 0:00:25]} Rcc8 {[%emt 0:00:00]} 26. Nf4 {[%emt 0:02:14]} Nc5 {[%emt 0:00:00]} 27. Bxc5 {[%emt 0:05:55]} Rxc5 {[%emt 0:00:00]} 28. Qe3 {[%emt 0:00:38]} Rec8 {[%emt 0:00:00]} 29. h3 {[%emt 0:00:07]} Nd3 {[%emt 0:00:00]} 30. Nxd3 {[%emt 0:00:48]} exd3 {[%emt 0:00:00]} 31. Rxd3 {[%emt 0:00:41]} Bd5 {[%emt 0:00:00]} 32. Qd4 {[%emt 0:00:34]} Be6 {[%emt 0:00:00]} 33. Rg3 {[%emt 0:00:12]} g6 {[%emt 0:00:46]} 34. Kh2 {[%emt 0:00:44]} Kh7 {[%emt 0:02:00]} 35. Re3 {[%emt 0:01:10]} R5c6 {[%emt 0:01:25]} 36. Qb4 {[%emt 0:02:06]} Rc5 {[%emt 0:01:16]} 37. Qa5 {[%emt 0:00:16]} R5c6 {[%emt 0:01:24]} 38. Rd3 {[%emt 0:00:17]} Bf5 {[%emt 0:01:40]} 39. Rf3 {[%emt 0:00:06]} Be6 {[%emt 0:00:04]} 40. Re3 {[%emt 0:00:07]} Rd6 {[%emt 0:01:03]} 41. Qb4 {[%emt 0:04:01]} Rcd8 {[%emt 0:00:53]} 42. Qc3 {[%emt 0:00:51]} R8d7 {[%emt 0:02:25]} 43. b4 {[%emt 0:00:00]} Rd8 {[%emt 0:00:00]} 44. Qe5 {[%emt 0:00:00]} Rd3 {[%emt 0:00:00]} 45. Qg3 {[%emt 0:00:00]} Bc4 {[%emt 0:00:00]} 46. Qf4 {[%emt 0:00:00]} Rxe3 {[%emt 0:00:00]} 47. Qxe3 {[%emt 0:00:00]} Rd3 {[%emt 0:00:00]} 48. Qc1 {[%emt 0:00:00]} Be6 {[%emt 0:00:00]} 49. f3 {[%emt 0:00:00]} Rb3 {[%emt 0:00:00]} 50. Kg3 {[%emt 0:00:00]} Rd3 {[%emt 0:00:00]} 51. Kf4 {[%emt 0:00:00]} Bc4 {[%emt 0:00:00]} 52. Ke4 {[%emt 0:00:00]} Rb3 {[%emt 0:00:00]} 53. Kd4 {[%emt 0:00:00]} Be6 {[%emt 0:00:00]} 54. Qa1 {[%emt 0:00:00]} Kg8 {[%emt 0:00:00]} 55. Kc5 {[%emt 0:00:00]} Rd3 {[%emt 0:00:00]} 56. Kb6 {[%emt 0:00:00]} Rd6+ {[%emt 0:00:00]} 57. Kc7 {[%emt 0:00:00]} Rd3 {[%emt 0:00:00]} 58. Kb7 {[%emt 0:00:00]} Rd6 {[%emt 0:00:00]} 59. Qe5 {[%emt 0:00:00]} Rd3 {[%emt 0:00:00]} 60. Kxa6 {[%emt 0:00:00]} Bd7 {[%emt 0:00:00]} 61. Kb6 {[%emt 0:00:00]} h5 {[%emt 0:00:00]} 62. Kc7 {[%emt 0:00:00]} Rd2 {[%emt 0:00:00]} 63. Qe7 {[%emt 0:00:00]} 1-0

[Event "SS Manhem GM"]
[Site "Molnlycke SWE"]
[Date "2018.08.15"]
[Round "7.3"]
[White "Golubka, Petro"]
[Black "Brynell, Stellan"]
[Result "1-0"]
[ECO "E12"]
[WhiteElo "2478"]
[BlackElo "2391"]
[WhiteFideId "-1"]
[BlackFideId "-1"]
[PlyCount "59"]
[GameId "2129404765005136"]
[EventDate "2018.08.11"]
[EventType "tourn"]
[EventRounds "9"]
[EventCountry "SWE"]
[EventCategory "8"]
[SourceTitle "10 Days #552"]
[Source "ChessMix"]
[SourceDate "2018.08.20"]
[SourceVersion "1"]
[SourceVersionDate "2018.08.20"]
[SourceQuality "1"]
[TimeControl "90+30"]
[WhiteClock "0:16:37"]
[BlackClock "0:43:32"]

1. d4 {[%emt 0:00:00]} Nf6 {[%emt 0:00:00]} 2. c4 {[%emt 0:00:00]} e6 {[%emt 0:00:00]} 3. Nf3 {[%emt 0:00:00]} b6 {[%emt 0:00:00]} 4. a3 {[%emt 0:00:00]} Ba6 {[%emt 0:00:00]} 5. Qc2 {[%emt 0:00:00]} c5 {[%emt 0:00:00]} 6. e4 {[%emt 0:00:00]} cxd4 {[%emt 0:00:00]} 7. e5 {[%emt 0:00:00]} Ng8 {[%emt 0:00:00]} 8. Nxd4 {[%emt 0:00:00]} Bb7 {[%emt 0:00:00]} 9. Nc3 {[%emt 0:00:00]} Nc6 {[%emt 0:00:00]} 10. Nf3 {[%emt 0:00:00]} Qb8 {[%emt 0:00:00]} 11. Bf4 {[%emt 0:00:00]} f6 {[%emt 0:00:00]} 12. Qe2 {[%emt 0:00:00]} Nge7 {[%emt 0:00:00]} 13. Bg3 {[%emt 0:00:00]} f5 {[%emt 0:00:00]} 14. O-O-O {[%emt 0:00:00]} a6 {[%emt 0:00:00]} 15. h4 {[%emt 0:00:00]} Ng8 {[%emt 0:00:00]} 16. Qe3 {[%emt 0:00:00]} Bc5 {[%emt 0:00:00]} 17. Qg5 {[%emt 0:00:00]} Bf8 {[%emt 0:00:00]} 18. Kb1 {[%emt 0:00:00]} Nh6 {[%emt 0:00:00]} 19. Nd5 {[%emt 0:00:00]} exd5 {[%emt 0:00:00]} 20. cxd5 {[%emt 0:00:00]} Na7 {[%emt 0:00:00]} 21. e6 {[%emt 0:00:00]} d6 {[%emt 0:00:00]} 22. e7 {[%emt 0:00:00]} Bxe7 {[%emt 0:00:00]} 23. Qxg7 {[%emt 0:00:00]} Nf7 {[%emt 0:00:00]} 24. Ng5 {[%emt 0:00:00]} Rf8 {[%emt 0:00:00]} 25. Nxh7 {[%emt 0:00:00]} Kd7 {[%emt 0:00:00]} 26. Bd3 {[%emt 0:00:00]} Nh8 {[%emt 0:00:00]} 27. Rhe1 {[%emt 0:00:00]} Qd8 {[%emt 0:00:00]} 28. Nxf8+ {[%emt 0:00:00]} Qxf8 {[%emt 0:00:00]} 29. Rxe7+ {[%emt 0:00:00]} Qxe7 {[%emt 0:00:00]} 30. Bxf5+ {[%emt 0:00:00]} 1-0